bitfinex-derivatives/quotes_ETHF0:USTF0_20241229
["timestamp","ask_amount","ask_price","bid_price","bid_amount"]
[1735497434673,0.29789,3362.8,3362.6,0.2979]
[1735497434979,0.29789,3362.8,3362.6,2.54628888]
[1735497435176,0.29787,3363.1,3362.9,0.29787]
[1735497435578,0.29787,3363.1,3362.9,2.54625888]
[1735497435879,0.29785,3363.3,3363.1,0.29785]
[1735497436073,0.29785,3363.3,3363.2,0.29785]
[1735497436667,0.2978,3363.8,3363.7,0.29781]
[1735497436875,3.2078,3364.0,3363.6,2.54619888]
[1735497437079,3.2078,3364.0,3363.7,0.2978]
[1735497437080,0.29779,3363.9,3363.7,0.2978]
[1735497438076,0.29779,3363.9,3363.8,0.2978]
[1735497438476,0.2978,3363.8,3363.7,1.4968]
[1735497439574,0.29779,3363.9,3363.7,0.2978]
[1735497439973,0.2978,3363.8,3363.7,1.199]
[1735497440171,0.2978,3363.8,3363.7,1.49681]
[1735497441285,0.2978,3363.8,3363.7,1.199]
[1735497441675,0.2978,3363.8,3363.6,3.44679888]
[1735497441989,3.2078,3364.0,3363.6,3.44679888]
[1735497442171,3.95226,3364.0,3363.3,2.54622888]
[1735497442373,0.29786,3363.1,3363.0,2.24838888]
[1735497442575,0.29787,3363.0,3362.9,1.199]
[1735497443079,0.29783,3363.5,3363.4,0.29783]
[1735497443386,0.29783,3363.5,3363.3,0.29784]
[1735497443682,3.2078,3363.8,3363.3,2.24838888]
[1735497443977,3.5056,3363.8,3363.6,0.29781]
[1735497445271,3.5056,3363.8,3363.4,1.2856]
[1735497445473,3.5056,3363.8,3363.7,0.29781]
[1735497445679,3.2078,3363.8,3363.7,0.29781]
[1735497445875,3.5056,3363.8,3363.6,2.24838888]
[1735497446077,3.5056,3363.8,3363.6,2.54619888]
[1735497446478,3.2078,3363.8,3363.6,2.24838888]
[1735497446777,3.5056,3363.8,3363.6,2.24838888]
[1735497446981,3.5056,3363.8,3363.7,0.29781]
[1735497447784,0.29781,3363.7,3363.6,2.54619888]
[1735497448376,3.5056,3363.8,3363.7,0.29781]
[1735497448578,3.2078,3363.8,3363.6,2.24838888]
[1735497448779,0.29781,3363.7,3363.6,0.29781]
[1735497451286,0.29783,3363.4,3363.3,2.54622888]
[1735497451681,0.29783,3363.5,3363.4,0.29783]
[1735497452183,0.29781,3363.7,3363.6,0.29782]
[1735497452377,3.2078,3363.8,3363.7,0.29781]
[1735497452581,3.5056,3363.8,3363.7,0.4421]
[1735497452779,3.2078,3363.8,3363.7,0.73991]
[1735497453180,3.2078,3363.8,3363.7,1.16821]
[1735497453381,2.63094091,3363.9,3363.7,1.16821]
[1735497453681,0.29779,3363.9,3363.8,0.2978]
[1735497453877,0.29779,3363.9,3363.7,1.5941]
[1735497454080,2.33315091,3364.1,3363.7,1.2963]
[1735497454381,0.29778,3364.0,3363.9,0.29779]
[1735497454583,2.33315091,3364.1,3363.7,2.4953]
[1735497454883,0.29778,3364.0,3363.9,0.29778]
[1735497455478,0.29779,3363.9,3363.8,0.29779]
[1735497455680,0.29779,3364.0,3363.9,0.29779]
[1735497456382,2.33315091,3364.1,3363.7,2.4953]
[1735497456584,0.29785,3363.3,3363.2,0.29785]
[1735497456879,3.2078,3363.4,3362.9,3.6533]
[1735497457084,0.29788,3362.9,3362.8,6.97024744]
[1735497457989,0.2979,3362.7,3362.6,1.199]
[1735497459488,2.63105091,3362.7,3362.6,1.199]
[1735497460888,0.2979,3362.7,3362.6,1.199]
[1735497463387,2.63105091,3362.7,3362.6,1.199]
[1735497463586,2.63105091,3362.7,3362.5,1.304]
[1735497463587,0.2979,3362.6,3362.5,1.304]
[1735497466892,2.33315091,3362.7,3362.5,1.60191]
[1735497466893,2.63105091,3362.7,3362.5,1.60191]
[1735497468292,0.2979,3362.7,3362.5,1.60191]
[1735497469596,0.2979,3362.6,3362.5,1.304]
[1735497471392,2.33315091,3362.8,3362.2,3.2078]
[1735497471697,0.29793,3362.3,3362.2,3.2078]
[1735497474899,2.33315091,3362.6,3362.5,0.29791]
[1735497475199,2.33315091,3362.6,3362.5,2.54629888]
[1735497476908,0.29789,3362.8,3362.7,0.2979]
[1735497480804,2.33315091,3362.9,3362.6,1.3613]
[1735497481007,2.33315091,3362.9,3362.8,2.54627888]
[1735497482517,3.50567,3363.0,3362.9,0.29788]
[1735497483406,3.2078,3363.0,3362.6,1.3613]
[1735497483718,0.2979,3362.7,3362.6,1.3613]
[1735497483917,0.29792,3362.4,3362.3,3.44838888]
[1735497484913,0.4556,3362.9,3362.3,3.44838888]
[1735497485112,0.29791,3362.6,3362.4,0.29791]
[1735497485721,2.63106091,3362.6,3362.4,0.29791]
[1735497486019,2.33315091,3362.6,3362.4,0.29791]
[1735497486318,0.29792,3362.5,3362.4,0.29792]
[1735497486513,2.33315091,3362.6,3362.4,0.29792]
[1735497486514,2.63106091,3362.6,3362.4,0.29792]
[1735497486717,0.29791,3362.6,3362.4,0.29792]
[1735497487617,2.33315091,3362.7,3362.5,0.29791]
[1735497487817,2.33315091,3362.7,3362.6,2.54628888]
[1735497488317,2.33315091,3362.7,3362.6,2.24838888]
[1735497488521,2.33315091,3362.7,3362.6,2.54628888]
[1735497489220,2.63104091,3362.8,3362.6,2.54628888]
[1735497489518,2.63104091,3362.8,3362.7,0.4439]
[1735497489717,2.33315091,3362.8,3362.7,0.4439]
[1735497489918,2.33315091,3362.8,3362.7,1.6454]
[1735497490514,2.63103091,3362.9,3362.8,0.29789]
[1735497490714,2.33315091,3362.9,3362.8,0.29789]
[1735497491420,2.63103091,3362.9,3362.8,0.29789]
[1735497492015,0.29788,3362.9,3362.8,0.29789]
[1735497492215,2.33315091,3363.0,3362.7,1.3475]
[1735497492419,0.29793,3362.3,3362.2,6.91658513]
[1735497492724,0.29793,3362.3,3362.2,4.66819625]
[1735497493619,0.29793,3362.3,3361.6,14.85998182]
[1735497493620,0.29798,3361.7,3361.6,3.2078]
[1735497494723,0.4287,3362.2,3361.6,5.45618888]
[1735497495020,2.33315091,3361.8,3361.7,0.29798]
[1735497496224,4.67312022,3362.1,3361.8,0.29798]
[1735497496225,2.33315091,3361.9,3361.8,0.29798]
[1735497498521,2.63111091,3362.0,3361.8,0.29798]
[1735497499024,2.63111091,3362.0,3361.9,0.29797]
[1735497499620,2.33315091,3362.0,3361.9,2.54635888]
[1735497499819,2.33315091,3362.1,3361.9,2.24838888]
[1735497500025,2.63110091,3362.1,3362.0,0.4252]
[1735497501220,2.63110091,3362.1,3362.0,0.72316]
[1735497502327,0.29798,3361.7,3361.6,3.2078]
[1735497502722,3.50615109,3362.1,3361.6,3.2078]
[1735497502922,3.50615109,3362.1,3361.9,2.24838888]
[1735497503123,3.50615109,3362.1,3362.0,0.4507]
[1735497503628,3.50615109,3362.1,3362.0,1.93966]
[1735497503826,3.50615109,3362.1,3362.0,3.95646]
[1735497504023,3.2078,3362.8,3362.0,3.95646]
[1735497504024,3.97732022,3362.2,3362.1,0.29795]
[1735497504224,3.97732022,3362.2,3362.1,2.97663888]
[1735497505224,2.33915691,3362.5,3362.4,0.29792]
[1735497506425,2.33915691,3362.5,3362.1,2.97663888]
[1735497506426,0.29791,3362.5,3362.1,2.97663888]
[1735497506629,0.29793,3362.4,3362.1,2.97662888]
[1735497506825,0.29793,3362.3,3362.1,2.97662888]
[1735497507223,0.29793,3362.3,3362.2,0.4185]
[1735497507423,2.33915691,3362.4,3362.2,0.4185]
[1735497507724,2.63708691,3362.4,3362.2,0.4185]
[1735497507920,2.33915691,3362.4,3362.3,0.29793]
[1735497508526,2.63707691,3362.5,3362.4,0.29792]
[1735497508730,2.63707691,3362.5,3362.4,2.54630888]
[1735497509031,2.33915691,3362.5,3362.4,2.54630888]
[1735497511022,2.33915691,3362.5,3362.4,5.75410888]
[1735497512037,2.63702691,3363.0,3362.8,0.29788]
[1735497512532,5.54695691,3363.0,3362.4,13.27464295]
[1735497512836,0.8813,3362.9,3362.4,13.27464295]
[1735497513134,0.8813,3362.9,3362.4,8.17391625]
[1735497513330,0.29791,3362.6,3362.4,8.17391625]
[1735497514331,2.63706691,3362.6,3362.4,3.50572]
[1735497515131,0.29791,3362.5,3362.4,3.2078]
[1735497515731,2.63706691,3362.6,3362.4,3.50572]
[1735497515931,0.29791,3362.5,3362.4,3.2078]
[1735497516132,0.29791,3362.5,3362.4,4.3988]
[1735497516438,0.29791,3362.5,3362.4,4.69672]
[1735497516640,2.63706691,3362.6,3362.4,4.69672]
[1735497516832,2.33915691,3362.5,3362.4,4.69672]
[1735497518336,2.33915691,3362.6,3362.4,1.48892]
[1735497518642,2.63706691,3362.6,3362.4,1.48892]
[1735497519641,2.33915691,3362.5,3362.4,1.48892]
[1735497522636,2.33915691,3362.5,3362.2,0.4185]
[1735497522842,0.29794,3362.2,3362.1,0.4303]
[1735497523039,0.29795,3362.1,3362.0,9.52269625]
[1735497523642,0.29795,3362.1,3362.0,4.8545]
[1735497524444,3.50575,3362.1,3362.0,0.4507]
[1735497524942,5.84493065,3362.1,3362.0,0.4507]
[1735497527645,2.63713065,3362.1,3362.0,0.74866]
[1735497528845,2.33918065,3362.1,3362.0,0.74866]
[1735497530440,0.29794,3362.3,3362.0,0.4507]
[1735497530640,0.29794,3362.3,3362.2,0.29794]
[1735497531147,2.33918065,3362.4,3362.3,0.29793]
[1735497531447,2.33918065,3362.4,3362.3,0.75493]
[1735497531846,3.50873537,3362.5,3362.3,0.457]
[1735497532050,3.50873537,3362.5,3362.4,0.29792]
[1735497532745,3.50873537,3362.5,3362.4,3.50572]
[1735497533140,2.33916051,3362.6,3362.5,0.29791]
[1735497533342,2.33916051,3362.6,3362.5,2.97389888]
[1735497534348,2.33916051,3362.8,3362.5,2.67598888]
[1735497534549,2.33916051,3362.8,3362.7,0.2979]
[1735497534847,2.33916051,3362.8,3362.7,1.4939]
[1735497535442,2.33916051,3362.9,3362.7,1.196]
[1735497535643,2.33916051,3362.9,3362.8,0.29789]
[1735497536551,2.33916051,3362.9,3362.8,2.54627888]
[1735497538047,2.33916051,3363.0,3362.9,0.29788]
[1735497538349,2.33916051,3363.0,3362.9,0.74148]
[1735497539650,2.63703051,3363.1,3362.9,0.74148]
[1735497541343,2.33916051,3363.1,3362.9,0.74148]
[1735497542641,2.63702051,3363.1,3363.0,0.4573]
[1735497544754,2.33916051,3363.1,3363.0,0.4573]
[1735497546258,2.63702051,3363.1,3363.0,0.4573]
[1735497546656,2.63702051,3363.1,3363.0,0.75517]
[1735497546960,2.33916051,3363.1,3363.0,0.75517]
[1735497547566,2.33916051,3363.2,3363.1,0.29786]
[1735497547868,2.33916051,3363.2,3363.1,2.54624888]
[1735497548458,2.33916051,3363.2,3363.1,5.75404888]
[1735497549167,2.33916051,3363.5,3363.4,0.29783]
[1735497549463,2.33916051,3363.5,3363.4,2.54621888]
[1735497550168,2.63698051,3363.5,3363.4,2.24838888]
[1735497550467,5.84478051,3363.6,3363.4,2.54621888]
[1735497550660,5.84478051,3363.6,3363.5,1.196]
[1735497550856,5.84478051,3363.6,3363.1,3.2078]
[1735497551056,0.29787,3363.0,3362.9,4.66819625]
[1735497551259,0.29787,3363.0,3362.9,3.97229625]
[1735497551462,5.29787,3363.0,3362.9,1.85649625]
[1735497551667,5.29787,3363.0,3362.9,1.85359625]
[1735497552063,0.29793,3362.3,3362.2,2.24838888]
[1735497553973,3.50738754,3362.4,3362.2,2.24838888]
[1735497554273,3.50738754,3362.4,3362.3,0.29793]
[1735497554673,3.50738754,3362.5,3362.4,0.29792]
[1735497555082,3.50738754,3362.5,3362.4,2.54630888]
[1735497555271,3.80529754,3362.5,3362.4,2.54630888]
[1735497555575,3.50738754,3362.5,3362.4,2.54630888]
[1735497555770,2.63564459,3362.6,3362.4,2.54630888]
[1735497556171,3.2078,3362.5,3362.4,2.54630888]
[1735497556474,3.2078,3362.5,3362.4,3.73130888]
[1735497557078,5.54553459,3362.5,3362.4,3.73130888]
[1735497557269,5.54553459,3362.5,3362.4,3.43338888]
[1735497557270,5.84344459,3362.5,3362.4,3.43338888]
[1735497561474,3.50571,3362.5,3362.4,3.43338888]
[1735497562674,3.50571,3362.5,3362.4,1.185]
[1735497563482,5.84339796,3362.5,3362.4,1.185]
[1735497564579,2.63559796,3362.5,3362.4,1.185]
[1735497565679,2.63559796,3362.5,3362.4,3.43338888]
[1735497565980,2.33768796,3362.5,3362.4,3.73130888]
[1735497567780,0.2979,3362.6,3362.4,3.73130888]
[1735497567985,2.33768796,3362.8,3362.4,3.43338888]
[1735497568186,0.2979,3362.7,3362.5,0.75181]
[1735497568885,0.2979,3362.7,3362.5,0.4539]
[1735497569187,2.63557796,3362.8,3362.6,0.2979]
[1735497569382,2.63557796,3362.8,3362.7,0.8549]
[1735497570685,2.33768796,3362.8,3362.7,0.8549]
[1735497570886,2.33768796,3362.9,3362.7,3.40118888]
[1735497572082,0.29789,3362.8,3362.7,3.10328888]
[1735497572383,6.71433194,3363.0,3362.5,0.4539]
[1735497572384,0.2979,3362.6,3362.5,0.4539]
[1735497573489,0.2979,3362.6,3362.5,0.75181]
[1735497573884,2.63558796,3362.6,3362.5,0.75181]
[1735497576089,0.2979,3362.6,3362.5,0.75181]
[1735497580589,0.2979,3362.6,3362.5,1.93681]
[1735497580590,2.63725595,3362.6,3362.5,1.93681]
[1735497586692,2.63725595,3362.6,3362.5,1.6389]
[1735497586893,2.63725595,3362.6,3362.5,1.93681]
[1735497587300,0.2979,3362.6,3362.5,1.93681]
[1735497589896,2.33935595,3362.7,3362.6,0.2979]
[1735497590099,2.33935595,3362.7,3362.5,4.8467]
[1735497590295,0.2979,3362.6,3362.5,1.6389]
[1735497590896,2.63725595,3362.7,3362.5,1.93681]
[1735497592902,2.33935595,3362.7,3362.6,0.2979]
[1735497593291,6.14377789,3362.8,3362.6,0.2979]
[1735497593495,2.63724595,3362.8,3362.6,0.2979]
[1735497593697,2.33935595,3362.8,3362.5,1.6389]
[1735497593998,2.33935595,3362.8,3362.7,0.2979]
[1735497595098,2.33935595,3362.8,3362.7,1.4759]
[1735497595491,1.64285595,3362.8,3362.7,3.72428888]
[1735497595895,3.50653194,3363.0,3362.7,3.42638888]
[1735497596095,3.50653194,3363.0,3362.9,0.29788]
[1735497596308,3.50653194,3363.0,3362.9,3.50568]
[1735497597200,0.29784,3363.3,3363.1,0.29786]
[1735497597395,0.29784,3363.3,3363.1,2.54624888]
[1735497597601,3.50653194,3363.4,3363.2,0.4551]
[1735497597796,3.80437194,3363.4,3363.2,0.75295]
[1735497599108,3.50653194,3363.4,3363.2,0.4551]
[1735497599299,3.50653194,3363.4,3363.3,0.29784]
[1735497601304,4.67537592,3363.6,3363.4,0.29783]
[1735497601305,0.29782,3363.6,3363.4,0.29783]
[1735497601507,0.29782,3363.6,3363.5,0.4393]
[1735497601704,6.71433194,3363.7,3363.2,0.4551]
[1735497602004,0.29785,3363.2,3363.1,7.01030707]
[1735497602702,3.50653194,3363.5,3363.1,2.24838888]
[1735497602905,0.29784,3363.4,3363.2,0.29785]
[1735497603101,3.50653194,3363.5,3363.1,2.24838888]
[1735497603301,3.50653194,3363.5,3363.4,2.54621888]
[1735497605512,0.29782,3363.6,3363.5,0.29782]
[1735497605806,6.71433194,3363.7,3363.4,2.24838888]
[1735497606007,0.29782,3363.5,3363.4,0.29783]
[1735497606703,0.29782,3363.5,3363.1,2.24838888]
[1735497606704,0.29782,3363.5,3363.3,0.29784]
[1735497606914,6.71433194,3363.7,3363.0,0.4468]
[1735497607112,0.29787,3363.0,3362.9,3.6471]
[1735497608005,3.2078,3363.3,3362.8,8.18830707]
[1735497608205,0.29788,3362.9,3362.8,8.18830707]
[1735497608799,0.29788,3362.9,3362.8,1.178]
[1735497610099,3.80441194,3362.9,3362.8,1.178]
[1735497611708,3.50653194,3362.9,3362.8,1.47589]
[1735497612012,3.80441194,3362.9,3362.8,3.42638888]
[1735497612200,3.50653194,3362.9,3362.8,1.178]
[1735497612408,3.50653194,3362.9,3362.8,1.47589]
[1735497612809,3.50653194,3362.9,3362.8,3.72427888]
[1735497613913,2.81023194,3363.1,3363.0,0.29787]
[1735497614313,4.67537592,3363.3,3363.0,3.2078]
[1735497614608,4.67537592,3363.3,3363.2,2.54623888]
[1735497615009,4.67537592,3363.3,3363.2,0.29785]
[1735497615208,0.2978,3363.8,3363.5,0.29782]
[1735497617003,0.29784,3363.3,3363.2,2.24838888]
[1735497618616,3.2078,3363.5,3363.2,2.24838888]
[1735497618828,5.39797592,3363.8,3363.2,2.24838888]
[1735497619118,5.10017592,3363.8,3363.7,0.29781]
[1735497619506,5.10017592,3363.8,3363.7,0.71901]
[1735497619917,0.7226,3363.8,3363.7,0.71901]
[1735497620818,0.7226,3363.8,3363.7,0.4212]
[1735497621717,0.7226,3363.8,3363.7,0.71901]
[1735497622319,0.7226,3363.8,3363.7,0.4212]
[1735497623419,0.4248,3363.8,3363.7,0.4212]
[1735497623622,0.4248,3363.8,3363.7,0.71901]
[1735497623826,0.4248,3363.8,3363.7,1.63561]
[1735497624024,3.2078,3363.9,3363.8,0.2978]
[1735497625724,0.4219,3364.2,3363.7,1.3378]
[1735497626017,0.4219,3364.2,3364.1,2.54615888]
[1735497627321,0.00736008,3364.3,3364.1,2.24838888]
[1735497627526,0.00736008,3364.3,3364.2,0.29776]
[1735497627825,0.00736008,3364.3,3364.2,0.74446]
[1735497633728,0.29776,3364.2,3364.1,5.45618888]
[1735497634028,0.29781,3363.7,3363.6,7.01030707]
[1735497634617,5.29781,3363.7,3363.6,5.59030707]
[1735497634823,5.29781,3363.7,3363.6,0.17713408]
[1735497635017,7.54619888,3363.7,3363.6,4.08e-06]
[1735497635421,7.24838888,3363.7,3362.6,2.24838888]
[1735497635728,3.2078,3363.0,3362.9,2.24838888]
[1735497635920,3.50567,3363.0,3362.9,2.24838888]
[1735497636323,3.2078,3363.0,3362.9,2.54626888]
[1735497638127,3.50567,3363.0,3362.9,2.24838888]
[1735497639027,3.2078,3363.0,3362.9,2.54626888]
[1735497639328,0.29786,3363.2,3363.0,0.29786]
[1735497639529,0.29786,3363.2,3363.1,0.4383]
[1735497639832,3.2078,3363.4,3363.1,0.4383]
[1735497640030,0.29785,3363.3,3363.1,0.73615]
[1735497640231,0.29785,3363.3,3363.2,0.4448]
[1735497640431,0.29785,3363.3,3363.2,0.74265]
[1735497640825,0.29783,3363.5,3363.2,0.4448]
[1735497641025,0.29783,3363.5,3363.3,0.72784]
[1735497641429,0.29782,3363.7,3363.5,0.29782]
[1735497641823,3.2078,3363.8,3363.6,2.24838888]
[1735497642024,4.67537592,3364.0,3363.8,0.29779]
[1735497642228,0.29778,3364.0,3363.9,2.68668888]
[1735497642431,4.97314592,3364.2,3364.0,0.29778]
[1735497642731,4.97314592,3364.2,3364.1,0.29777]
[1735497642732,4.67537592,3364.2,3364.1,0.29777]
[1735497643131,4.67537592,3364.2,3364.0,0.9038]
[1735497643334,4.67537592,3364.2,3364.0,1.20158]
[1735497643528,0.29776,3364.2,3364.0,1.20158]
[1735497645331,0.30512008,3364.3,3364.1,0.29777]
[1735497645531,0.29777,3364.1,3364.0,0.9038]
[1735497645737,0.29777,3364.2,3364.0,1.20158]
[1735497646733,0.00736008,3364.3,3363.9,3.6461]
[1735497646934,0.29778,3364.0,3363.9,3.6461]
[1735497647538,0.29778,3364.0,3363.9,3.2078]
[1735497653345,0.29782,3363.6,3363.5,2.54620888]
[1735497653742,3.2078,3364.0,3363.5,2.54620888]
[1735497653940,3.2078,3364.0,3363.3,0.4382]
[1735497654138,3.2078,3363.6,3362.9,3.2078]
[1735497654351,0.29786,3363.1,3362.9,3.2078]
[1735497654542,0.29786,3363.1,3362.9,3.50568]
[1735497654944,3.2078,3363.6,3362.9,3.2078]
[1735497655241,0.29787,3363.0,3362.9,3.2078]
[1735497655441,3.2078,3363.6,3362.9,3.2078]
[1735497655639,0.29787,3363.1,3362.9,3.2078]
[1735497655844,0.29787,3363.1,3362.9,3.50568]
[1735497657254,0.29787,3363.0,3362.9,3.2078]
[1735497657650,0.29787,3363.0,3362.8,3.41206888]
[1735497657844,3.2078,3363.0,3362.8,3.11418888]
[1735497658045,3.50567,3363.0,3362.8,3.41207888]
[1735497658247,3.2078,3363.0,3362.8,3.11418888]
[1735497658556,3.50567,3363.0,3362.8,3.41207888]
[1735497660448,0.29788,3362.9,3362.8,3.41207888]
[1735497661362,0.29788,3362.9,3362.8,3.11418888]
[1735497663859,0.29788,3362.9,3362.8,0.8658]
[1735497664654,0.29788,3362.9,3362.8,1.16369]
[1735497666055,3.2078,3363.0,3362.8,3.41207888]
[1735497666356,0.29788,3362.9,3362.8,3.41207888]
[1735497669350,0.29788,3362.9,3362.8,1.16369]
[1735497669660,0.29788,3362.9,3362.8,0.4435]
[1735497674348,0.29788,3362.9,3362.8,0.74139]
[1735497674750,0.29788,3362.9,3362.8,0.4435]
[1735497676250,0.29788,3362.9,3362.8,0.74139]
[1735497683470,0.29788,3362.9,3362.8,0.4435]
[1735497686470,0.29788,3362.9,3362.8,0.74139]
[1735497688567,0.29788,3362.9,3362.8,0.4435]
[1735497689371,0.29788,3362.9,3362.8,0.74139]
[1735497689575,3.2078,3363.0,3362.8,0.4435]
[1735497689782,3.2078,3363.0,3362.9,2.54626888]
[1735497690968,0.29786,3363.1,3363.0,0.29787]
[1735497692776,0.29785,3363.3,3363.2,0.29785]
[1735497693076,0.29785,3363.3,3363.2,2.54623888]
[1735497697584,0.29785,3363.2,3363.1,0.29786]
[1735497698273,0.29787,3363.0,3362.9,4.96363783]
[1735497698474,0.29787,3363.0,3362.9,4.96364783]
[1735497698984,3.50567,3363.0,3362.9,4.96364783]
[1735497699171,3.50567,3363.0,3362.9,4.66576783]
[1735497700185,0.29789,3362.8,3362.7,4.66576783]
[1735497701471,0.29793,3362.4,3362.2,0.29793]
[1735497701683,0.29793,3362.4,3362.3,0.29793]
[1735497702584,3.80971165,3362.4,3362.3,0.29793]
[1735497703286,3.80971165,3362.4,3362.1,5.54396783]
[1735497703485,3.80971165,3362.4,3362.3,0.29793]
[1735497706787,0.29793,3362.4,3362.3,0.29793]
[1735497706989,0.29793,3362.4,3362.3,0.72383]
[1735497710893,3.50572,3362.5,3362.3,0.72383]
[1735497711392,7.01750165,3362.5,3362.3,0.72383]
[1735497711595,0.29792,3362.4,3362.3,0.4259]
[1735497712997,0.29792,3362.4,3362.3,0.4259]
[1735497713996,0.29792,3362.4,3362.3,0.72383]
[1735497714192,3.80601862,3362.4,3362.3,0.72383]
[1735497714392,3.80601862,3362.4,3362.3,0.4259]
[1735497715689,3.80601862,3362.4,3362.3,0.72383]
[1735497716187,3.80601862,3362.4,3362.3,0.4259]
[1735497716393,2.63718816,3362.4,3362.3,0.4259]
[1735497716986,2.63718816,3362.4,3362.3,0.72383]
[1735497717895,0.29792,3362.4,3362.3,0.72383]
[1735497719797,3.2078,3362.5,3362.3,0.4259]
[1735497720098,3.2078,3362.5,3362.4,0.29792]
[1735497720099,2.33926816,3362.5,3362.4,0.29792]
[1735497720291,2.63717816,3362.5,3362.4,0.29792]
[1735497720484,5.84497816,3362.5,3362.4,0.29792]
[1735497720685,2.33926816,3362.5,3362.4,0.29792]
[1735497721085,2.63717816,3362.5,3362.4,0.29792]
[1735497722001,0.29791,3362.5,3362.4,0.29792]
[1735497722697,3.2078,3362.6,3362.1,0.8782]
[1735497722899,3.2078,3362.2,3362.0,4.66576783]
[1735497723399,3.2078,3362.2,3361.8,0.4619]
[1735497723598,0.29797,3361.9,3361.8,0.4619]
[1735497724995,2.63660389,3361.9,3361.8,0.4619]
[1735497725903,2.63660389,3361.9,3361.8,0.75988]
[1735497726299,0.29797,3361.9,3361.8,0.75988]
[1735497726498,0.29797,3361.9,3361.8,0.4619]
[1735497728796,2.33863389,3362.0,3361.6,0.8855]
[1735497728997,0.29798,3361.7,3361.6,0.8855]
[1735497730402,0.29798,3361.7,3361.6,1.18349]
[1735497731492,0.29798,3361.7,3361.6,0.8855]
[1735497733407,0.29798,3361.7,3361.6,1.18349]
[1735497734909,3.2078,3361.8,3361.6,1.18349]
[1735497734910,3.50578,3361.8,3361.7,0.29798]
[1735497735403,3.50578,3361.8,3361.7,0.75268]
[1735497739103,3.2078,3361.8,3361.7,0.75268]
[1735497739502,3.2078,3361.8,3361.7,3.00106888]
[1735497739708,2.33863389,3362.1,3362.0,0.29796]
[1735497740107,2.33863389,3362.2,3362.1,0.29795]
[1735497740307,1.64243389,3362.2,3362.1,4.68375]
[1735497741014,3.50795084,3362.3,3362.2,0.29794]
[1735497741708,0.29788,3362.9,3362.1,4.3858]
[1735497741912,0.29788,3362.9,3362.8,0.29789]
[1735497742505,0.29788,3362.9,3362.0,4.66576783]
[1735497742506,5.0,3362.9,3362.0,4.66576783]
[1735497742708,0.29795,3362.1,3362.0,4.66576783]
[1735497743014,2.54633888,3362.1,3362.0,3.71953395]
[1735497743203,3.45163888,3362.1,3362.0,7.01826311]
[1735497744515,0.29802,3361.3,3361.2,0.74922]
[1735497745516,3.50964615,3361.6,3361.2,0.74922]
[1735497745722,0.29802,3361.3,3361.2,0.74922]
[1735497746915,6.71744615,3361.7,3361.2,0.4512]
[1735497747216,0.29799,3361.6,3361.4,0.29801]
[1735497747415,0.29799,3361.6,3361.5,0.454]
[1735497748212,0.29802,3361.3,3361.2,0.4512]
[1735497748408,3.50582,3361.3,3361.2,0.4512]
[1735497748717,0.29804,3361.1,3361.0,0.4281]
[1735497750510,3.2078,3361.3,3361.0,0.4281]
[1735497750819,3.2078,3361.3,3361.2,0.29803]
[1735497751021,3.50964615,3361.4,3361.0,2.67648888]
[1735497751210,3.50964615,3361.4,3361.3,0.29802]
[1735497751915,3.50964615,3361.4,3361.2,0.29802]
[1735497752122,0.29802,3361.3,3361.2,0.29802]
[1735497752316,0.29802,3361.4,3361.2,0.29802]
[1735497753817,0.29804,3361.1,3361.0,0.4281]
[1735497754114,0.29804,3361.1,3361.0,0.72615]
[1735497754719,3.50964615,3361.5,3361.0,0.4281]
[1735497754921,0.29801,3361.4,3361.2,0.29802]
[1735497755417,3.50964615,3361.5,3361.4,0.29801]
[1735497755620,3.80764615,3361.6,3361.1,0.29804]
[1735497755818,3.80764615,3361.6,3361.4,0.298]
[1735497756020,3.80764615,3361.6,3361.5,0.463]
[1735497756422,3.80764615,3361.6,3361.5,0.761]
[1735497756922,0.298,3361.6,3361.5,0.761]
[1735497757117,3.50579,3361.7,3361.5,0.761]
[1735497757315,3.50579,3361.7,3361.6,0.4496]
[1735497757715,3.50578,3361.7,3361.6,0.74759]
[1735497757921,3.50578,3361.7,3361.6,0.4496]
[1735497759723,0.29798,3361.7,3361.6,0.4496]
[1735497761820,0.29798,3361.7,3361.6,0.74759]
[1735497762015,0.29798,3361.7,3361.6,0.4496]
[1735497763626,0.29798,3361.8,3361.6,0.4496]
[1735497763827,0.29798,3361.7,3361.6,0.74759]
[1735497764819,6.71744615,3361.9,3361.8,0.29798]
[1735497765029,3.2078,3361.9,3361.8,0.29798]
[1735497765923,3.2078,3361.9,3361.6,0.4496]
[1735497766123,0.29798,3361.7,3361.6,0.4496]
[1735497767923,0.423,3361.8,3361.7,0.29798]
[1735497767924,0.29798,3361.8,3361.7,0.29798]
[1735497768428,7.01541615,3361.9,3361.8,0.29798]
[1735497768828,3.80761615,3361.9,3361.8,0.29798]
[1735497769225,3.50964615,3361.9,3361.8,0.29798]
[1735497770027,0.29796,3362.0,3361.8,0.29798]
[1735497770426,0.29796,3362.0,3361.9,0.4314]
[1735497771135,3.80760615,3362.0,3361.9,0.4314]
[1735497773231,3.50964615,3362.0,3361.9,0.72937]
[1735497773734,2.81324615,3362.0,3361.9,1.91437]
[1735497774127,3.2078,3362.3,3362.2,0.29794]
[1735497774631,3.50573,3362.3,3362.2,0.29794]
[1735497774831,0.29793,3362.3,3362.2,0.29794]
[1735497775431,7.88732821,3362.4,3361.9,1.6164]
[1735497775628,0.29793,3362.3,3362.2,0.29793]
[1735497775931,0.29793,3362.4,3362.3,0.29793]
[1735497777030,0.29793,3362.4,3361.9,1.6164]
[1735497777232,0.29793,3362.3,3362.2,0.29794]
[1735497778538,0.29792,3362.5,3362.3,0.29792]
[1735497778741,0.29792,3362.5,3362.4,0.9008]
[1735497779037,0.29792,3362.5,3362.4,1.3393]
[1735497779741,0.29792,3362.5,3362.4,1.63722]
[1735497780040,0.29792,3362.5,3362.4,1.3393]
[1735497782339,0.29793,3362.3,3362.2,0.29794]
[1735497784534,3.2078,3362.4,3361.7,3.2078]